[Event "Titled Tuesday Blitz November 14 Early 2023"]
[White "Firouzja, Alireza"]
[Black "Fier, Alexandr"]
[WhiteFideId "12573981"]
[BlackFideId "2107139"]
[WhiteElo "3077"]
[BlackElo "2806"]
[Result "1-0"]
[Round "3"]
[TimeControl "180+1"]
[Date "2023.11.14"]
[WhiteClock "0:00:05"]
[BlackClock "0:00:03"]
[Board "7"]

1. e4 {[%clk 0:02:56]}  Nf6 {[%clk 0:03:00]} 2. e5 {[%clk 0:02:56]}  Nd5 {[%clk 0:03:00]} 3. d4 {[%clk 0:02:57]}  d6 {[%clk 0:03:01]} 4. Nf3 {[%clk 0:02:57]}  g6 {[%clk 0:03:01]} 5. Bc4 {[%clk 0:02:51]}  Nb6 {[%clk 0:03:01]} 6. Bb3 {[%clk 0:02:51]}  Bg7 {[%clk 0:03:02]} 7. Qe2 {[%clk 0:02:44]}  O-O {[%clk 0:03:02]} 8. h3 {[%clk 0:02:44]}  c5 {[%clk 0:03:00]} 9. dxc5 {[%clk 0:02:42]}  dxc5 {[%clk 0:03:01]} 10. O-O {[%clk 0:02:41]}  c4 {[%clk 0:03:01]} 11. Bxc4 {[%clk 0:02:41]}  Nxc4 {[%clk 0:03:02]} 12. Qxc4 {[%clk 0:02:41]}  Nc6 {[%clk 0:03:03]} 13. Qe2 {[%clk 0:02:35]}  Bf5 {[%clk 0:03:00]} 14. Nc3 {[%clk 0:02:25]}  Nb4 {[%clk 0:02:50]} 15. Rd1 {[%clk 0:02:24]}  Qa5 {[%clk 0:02:38]} 16. g4 {[%clk 0:02:08]}  Bxc2 {[%clk 0:02:13]} 17. Rd2 {[%clk 0:02:08]}  Ba4 {[%clk 0:02:10]} 18. h4 {[%clk 0:01:45]}  Bc6 {[%clk 0:02:05]} 19. a3 {[%clk 0:01:28]}  Bxf3 {[%clk 0:02:05]} 20. Qxf3 {[%clk 0:01:28]}  Nc6 {[%clk 0:02:06]} 21. Rd5 {[%clk 0:01:25]}  Qc7 {[%clk 0:01:42]} 22. Bf4 {[%clk 0:01:25]}  Nxe5 {[%clk 0:01:31]} 23. Qe4 {[%clk 0:01:19]}  f6 {[%clk 0:01:31]} 24. Rad1 {[%clk 0:01:14]}  Qc6 {[%clk 0:01:30]} 25. Bxe5 {[%clk 0:00:59]}  fxe5 {[%clk 0:01:30]} 26. Rd7 {[%clk 0:00:54]}  Qxe4 {[%clk 0:01:13]} 27. Nxe4 {[%clk 0:00:54]}  Rf4 {[%clk 0:01:14]} 28. Rd8+ {[%clk 0:00:33]}  Rxd8 {[%clk 0:01:14]} 29. Rxd8+ {[%clk 0:00:33]}  Bf8 {[%clk 0:01:15]} 30. Ng5 {[%clk 0:00:28]}  Rxg4+ {[%clk 0:01:14]} 31. Kf1 {[%clk 0:00:28]}  Rf4 {[%clk 0:01:14]} 32. Rb8 {[%clk 0:00:14]}  b6 {[%clk 0:01:15]} 33. Ra8 {[%clk 0:00:14]}  a5 {[%clk 0:01:14]} 34. Rb8 {[%clk 0:00:11]}  Rf6 {[%clk 0:01:14]} 35. Ne4 {[%clk 0:00:10]}  Rc6 {[%clk 0:01:14]} 36. Nc3 {[%clk 0:00:10]}  Kf7 {[%clk 0:01:04]} 37. Nd5 {[%clk 0:00:08]}  Bg7 {[%clk 0:00:41]} 38. Rxb6 {[%clk 0:00:05]}  Rc5 {[%clk 0:00:35]} 39. Nc3 {[%clk 0:00:06]}  Rc4 {[%clk 0:00:34]} 40. h5 {[%clk 0:00:06]}  gxh5 {[%clk 0:00:34]} 41. Ra6 {[%clk 0:00:06]}  e4 {[%clk 0:00:32]} 42. Rxa5 {[%clk 0:00:04]}  h4 {[%clk 0:00:21]} 43. Rh5 {[%clk 0:00:03]}  Bf6 {[%clk 0:00:22]} 44. Nd5 {[%clk 0:00:03]}  Bxb2 {[%clk 0:00:16]} 45. Rxh7+ {[%clk 0:00:02]}  Ke6 {[%clk 0:00:17]} 46. Ne3 {[%clk 0:00:02]}  Rc1+ {[%clk 0:00:17]} 47. Kg2 {[%clk 0:00:02]}  Bxa3 {[%clk 0:00:17]} 48. Rxh4 {[%clk 0:00:02]}  Bd6 {[%clk 0:00:16]} 49. Rxe4+ {[%clk 0:00:02]}  Kd7 {[%clk 0:00:16]} 50. Rh4 {[%clk 0:00:03]}  Rc5 {[%clk 0:00:16]} 51. Kf3 {[%clk 0:00:03]}  Rg5 {[%clk 0:00:17]} 52. Ra4 {[%clk 0:00:03]}  Rg6 {[%clk 0:00:17]} 53. Nc4 {[%clk 0:00:03]}  Rf6+ {[%clk 0:00:17]} 54. Ke2 {[%clk 0:00:03]}  Bc5 {[%clk 0:00:16]} 55. f3 {[%clk 0:00:03]}  Re6+ {[%clk 0:00:16]} 56. Kd3 {[%clk 0:00:04]}  Rh6 {[%clk 0:00:15]} 57. Ke4 {[%clk 0:00:03]}  Ke6 {[%clk 0:00:13]} 58. f4 {[%clk 0:00:03]}  Bd6 {[%clk 0:00:13]} 59. Ne3 {[%clk 0:00:03]}  Rh4 {[%clk 0:00:12]} 60. Nd5 {[%clk 0:00:04]}  Rg4 {[%clk 0:00:11]} 61. Ra5 {[%clk 0:00:04]}  Rh4 {[%clk 0:00:10]} 62. Ra1 {[%clk 0:00:04]}  Rg4 {[%clk 0:00:11]} 63. Rh1 {[%clk 0:00:03]}  Kd7 {[%clk 0:00:10]} 64. Rh7 {[%clk 0:00:03]}  Rg1 {[%clk 0:00:10]} 65. Nf6+ {[%clk 0:00:03]}  Ke6 {[%clk 0:00:10]} 66. Nh5 {[%clk 0:00:03]}  Re1+ {[%clk 0:00:09]} 67. Kf3 {[%clk 0:00:04]}  Kd5 {[%clk 0:00:07]} 68. Ng3 {[%clk 0:00:04]}  Rb1 {[%clk 0:00:07]} 69. Rh5+ {[%clk 0:00:04]}  Ke6 {[%clk 0:00:07]} 70. Ne4 {[%clk 0:00:04]}  Kd7 {[%clk 0:00:08]} 71. Rh6 {[%clk 0:00:04]}  Rb3+ {[%clk 0:00:08]} 72. Kg4 {[%clk 0:00:05]}  Rb4 {[%clk 0:00:08]} 73. Kf3 {[%clk 0:00:04]}  Rb3+ {[%clk 0:00:08]} 74. Kg4 {[%clk 0:00:05]}  Rb4 {[%clk 0:00:09]} 75. Nxd6 {[%clk 0:00:05]}  exd6 {[%clk 0:00:09]} 76. Kg5 {[%clk 0:00:06]}  Rb1 {[%clk 0:00:09]} 77. f5 {[%clk 0:00:06]}  Rg1+ {[%clk 0:00:10]} 78. Kf6 {[%clk 0:00:07]}  Kc6 {[%clk 0:00:10]} 79. Ke7 {[%clk 0:00:06]}  Rf1 {[%clk 0:00:09]} 80. Rxd6+ {[%clk 0:00:05]}  Kc5 {[%clk 0:00:08]} 81. f6 {[%clk 0:00:06]}  Rh1 {[%clk 0:00:06]} 82. f7 {[%clk 0:00:05]}  Rh7 {[%clk 0:00:06]} 83. Rd1 {[%clk 0:00:05]}  Kc6 {[%clk 0:00:03]} 84. Ke8 {[%clk 0:00:05]} 1-0


[Site "https://www.chess.com"]

[Event "Titled Tuesday Blitz November 14 Early 2023"]
[White "Llorente Zaro, Alfonso"]
[Black "Erdogmus, Yagiz Kaan"]
[WhiteFideId "2254131"]
[BlackFideId "44599790"]
[WhiteElo "2781"]
[BlackElo "3041"]
[Result "0-1"]
[Round "3"]
[TimeControl "180+1"]
[Date "2023.11.14"]
[WhiteClock "0:00:00"]
[BlackClock "0:00:19"]
[Board "11"]

1. e4 {[%clk 0:02:55]}  c5 {[%clk 0:03:00]} 2. Nf3 {[%clk 0:02:55]}  d6 {[%clk 0:03:00]} 3. g3 {[%clk 0:02:51]}  Nf6 {[%clk 0:02:47]} 4. Qe2 {[%clk 0:02:51]}  Nc6 {[%clk 0:02:44]} 5. Bg2 {[%clk 0:02:51]}  g6 {[%clk 0:02:44]} 6. c3 {[%clk 0:02:51]}  Bg7 {[%clk 0:02:42]} 7. O-O {[%clk 0:02:51]}  O-O {[%clk 0:02:41]} 8. Rd1 {[%clk 0:02:45]}  e5 {[%clk 0:02:25]} 9. a3 {[%clk 0:02:44]}  Be6 {[%clk 0:02:08]} 10. b4 {[%clk 0:02:41]}  Rc8 {[%clk 0:02:04]} 11. Bb2 {[%clk 0:02:36]}  c4 {[%clk 0:01:50]} 12. a4 {[%clk 0:02:36]}  d5 {[%clk 0:01:31]} 13. exd5 {[%clk 0:02:23]}  Bxd5 {[%clk 0:01:31]} 14. Ne1 {[%clk 0:01:46]}  e4 {[%clk 0:01:26]} 15. f4 {[%clk 0:01:40]}  exf3 {[%clk 0:01:21]} 16. Nxf3 {[%clk 0:01:40]}  Re8 {[%clk 0:01:21]} 17. Qf1 {[%clk 0:01:38]}  Be4 {[%clk 0:01:17]} 18. d4 {[%clk 0:01:18]}  cxd3 {[%clk 0:00:58]} 19. Nbd2 {[%clk 0:01:18]}  Bf5 {[%clk 0:00:55]} 20. Nh4 {[%clk 0:01:10]}  Bg4 {[%clk 0:00:54]} 21. Ndf3 {[%clk 0:01:10]}  Qb6+ {[%clk 0:00:41]} 22. Kh1 {[%clk 0:01:05]}  Ne4 {[%clk 0:00:41]} 23. a5 {[%clk 0:00:56]}  Nxa5 {[%clk 0:00:30]} 24. Nd4 {[%clk 0:00:14]}  Bxd1 {[%clk 0:00:25]} 25. Bxe4 {[%clk 0:00:08]}  Rxe4 {[%clk 0:00:24]} 26. Qxd3 {[%clk 0:00:09]}  Re1+ {[%clk 0:00:22]} 27. Kg2 {[%clk 0:00:08]}  Bxd4 {[%clk 0:00:22]} 28. Rxa5 {[%clk 0:00:06]}  Rg1+ {[%clk 0:00:20]} 29. Kh3 {[%clk 0:00:07]}  Qe6+ {[%clk 0:00:20]} 30. Nf5 {[%clk 0:00:07]}  gxf5 {[%clk 0:00:20]} 31. Qxd4 {[%clk 0:00:00]}  Bg4+ {[%clk 0:00:19]} 0-1


[Site "https://www.chess.com"]

[Event "Titled Tuesday Blitz November 14 Early 2023"]
[White "Javakhadze, Zurab"]
[Black "Martinez Alcantara, Jose Eduardo"]
[WhiteFideId "13603647"]
[BlackFideId "3805662"]
[WhiteElo "2766"]
[BlackElo "3024"]
[Result "0-1"]
[Round "3"]
[TimeControl "180+1"]
[Date "2023.11.14"]
[WhiteClock "0:00:13"]
[BlackClock "0:00:41"]
[Board "13"]

1. Nf3 {[%clk 0:03:00]}  c5 {[%clk 0:02:59]} 2. g3 {[%clk 0:02:58]}  Nc6 {[%clk 0:02:59]} 3. Bg2 {[%clk 0:02:59]}  g6 {[%clk 0:03:00]} 4. O-O {[%clk 0:02:59]}  Bg7 {[%clk 0:03:01]} 5. e4 {[%clk 0:02:54]}  d6 {[%clk 0:03:00]} 6. d3 {[%clk 0:02:54]}  Nf6 {[%clk 0:03:00]} 7. Nc3 {[%clk 0:02:55]}  O-O {[%clk 0:03:00]} 8. h3 {[%clk 0:02:55]}  Rb8 {[%clk 0:03:01]} 9. Be3 {[%clk 0:02:53]}  b5 {[%clk 0:03:01]} 10. Ne2 {[%clk 0:02:49]}  b4 {[%clk 0:02:59]} 11. Qc1 {[%clk 0:02:38]}  e5 {[%clk 0:02:52]} 12. Bh6 {[%clk 0:02:38]}  Nd4 {[%clk 0:02:51]} 13. Nfxd4 {[%clk 0:02:35]}  cxd4 {[%clk 0:02:52]} 14. Bxg7 {[%clk 0:02:34]}  Kxg7 {[%clk 0:02:53]} 15. f4 {[%clk 0:02:34]}  Bd7 {[%clk 0:02:35]} 16. c3 {[%clk 0:02:28]}  dxc3 {[%clk 0:02:24]} 17. bxc3 {[%clk 0:02:29]}  bxc3 {[%clk 0:02:23]} 18. Qxc3 {[%clk 0:02:24]}  Qb6+ {[%clk 0:02:21]} 19. Kh2 {[%clk 0:02:14]}  Rfc8 {[%clk 0:02:21]} 20. Qd2 {[%clk 0:02:02]}  Qb2 {[%clk 0:02:05]} 21. Qe3 {[%clk 0:01:57]}  Rc2 {[%clk 0:02:05]} 22. Rae1 {[%clk 0:01:49]}  Rb6 {[%clk 0:01:45]} 23. fxe5 {[%clk 0:01:42]}  dxe5 {[%clk 0:01:45]} 24. Rf2 {[%clk 0:01:21]}  Qxa2 {[%clk 0:01:22]} 25. Ref1 {[%clk 0:01:13]}  Qa3 {[%clk 0:01:04]} 26. Qg5 {[%clk 0:00:56]}  Qe7 {[%clk 0:00:54]} 27. d4 {[%clk 0:00:54]}  Rxe2 {[%clk 0:00:41]} 28. Rxe2 {[%clk 0:00:13]}  Ng4+ {[%clk 0:00:41]} 0-1


[Site "https://www.chess.com"]

[Event "Titled Tuesday Blitz November 14 Early 2023"]
[White "Terry, Renato"]
[Black "Saydaliev, Saidakbar"]
[WhiteFideId "3803457"]
[BlackFideId "14203693"]
[WhiteElo "3015"]
[BlackElo "2758"]
[Result "1-0"]
[Round "3"]
[TimeControl "180+1"]
[Date "2023.11.14"]
[WhiteClock "0:01:58"]
[BlackClock "0:01:29"]
[Board "14"]

1. d4 {[%clk 0:03:00]}  Nf6 {[%clk 0:02:58]} 2. Bg5 {[%clk 0:03:00]}  c5 {[%clk 0:02:54]} 3. dxc5 {[%clk 0:02:58]}  Ne4 {[%clk 0:02:49]} 4. Be3 {[%clk 0:02:58]}  e6 {[%clk 0:02:46]} 5. Nd2 {[%clk 0:02:56]}  Nxc5 {[%clk 0:02:44]} 6. c4 {[%clk 0:02:52]}  Nc6 {[%clk 0:02:43]} 7. Ngf3 {[%clk 0:02:50]}  b6 {[%clk 0:02:43]} 8. g3 {[%clk 0:02:50]}  Bb7 {[%clk 0:02:43]} 9. Bg2 {[%clk 0:02:50]}  Be7 {[%clk 0:02:42]} 10. O-O {[%clk 0:02:51]}  O-O {[%clk 0:02:43]} 11. Rc1 {[%clk 0:02:50]}  Bf6 {[%clk 0:02:41]} 12. Qc2 {[%clk 0:02:46]}  Rc8 {[%clk 0:02:39]} 13. Rfd1 {[%clk 0:02:34]}  Qe7 {[%clk 0:02:33]} 14. Bxc5 {[%clk 0:02:31]}  bxc5 {[%clk 0:02:31]} 15. Ne4 {[%clk 0:02:28]}  Nd4 {[%clk 0:01:37]} 16. Nxf6+ {[%clk 0:02:17]}  Qxf6 {[%clk 0:01:37]} 17. Nxd4 {[%clk 0:02:17]}  Bxg2 {[%clk 0:01:37]} 18. Nb5 {[%clk 0:02:11]}  Bc6 {[%clk 0:01:35]} 19. Nxa7 {[%clk 0:02:10]}  Rb8 {[%clk 0:01:34]} 20. Nxc6 {[%clk 0:01:58]}  d6 {[%clk 0:01:29]} 21. Nxb8 {[%clk 0:01:58]} 1-0


[Site "https://www.chess.com"]

[Event "Titled Tuesday Blitz November 14 Early 2023"]
[White "Muradli, Mahammad"]
[Black "Samunenkov, Ihor"]
[WhiteFideId "13409301"]
[BlackFideId "14187086"]
[WhiteElo "3001"]
[BlackElo "2750"]
[Result "0-1"]
[Round "3"]
[TimeControl "180+1"]
[Date "2023.11.14"]
[WhiteClock "0:00:01"]
[BlackClock "0:00:08"]
[Board "16"]

1. Nf3 {[%clk 0:03:00]}  d5 {[%clk 0:03:00]} 2. d4 {[%clk 0:03:01]}  Nf6 {[%clk 0:02:59]} 3. Bf4 {[%clk 0:03:01]}  e6 {[%clk 0:02:57]} 4. e3 {[%clk 0:03:02]}  Bd6 {[%clk 0:02:58]} 5. Bg3 {[%clk 0:03:01]}  O-O {[%clk 0:02:58]} 6. Nbd2 {[%clk 0:02:52]}  c5 {[%clk 0:02:57]} 7. dxc5 {[%clk 0:02:52]}  Bxc5 {[%clk 0:02:57]} 8. Bd3 {[%clk 0:02:47]}  b6 {[%clk 0:02:52]} 9. Qe2 {[%clk 0:02:47]}  Bb7 {[%clk 0:02:48]} 10. e4 {[%clk 0:02:37]}  dxe4 {[%clk 0:02:41]} 11. Nxe4 {[%clk 0:02:37]}  Nbd7 {[%clk 0:02:38]} 12. Rd1 {[%clk 0:02:20]}  Nxe4 {[%clk 0:02:33]} 13. Bxe4 {[%clk 0:02:21]}  Bxe4 {[%clk 0:02:33]} 14. Qxe4 {[%clk 0:02:22]}  Nf6 {[%clk 0:02:33]} 15. Qe2 {[%clk 0:02:10]}  Qe7 {[%clk 0:02:30]} 16. O-O {[%clk 0:02:10]}  Qb7 {[%clk 0:02:28]} 17. Rd3 {[%clk 0:01:46]}  Rad8 {[%clk 0:02:12]} 18. Rfd1 {[%clk 0:01:46]}  Rxd3 {[%clk 0:02:12]} 19. Rxd3 {[%clk 0:01:43]}  Ne4 {[%clk 0:02:10]} 20. Bh4 {[%clk 0:01:33]}  h6 {[%clk 0:01:53]} 21. Nd2 {[%clk 0:01:27]}  Nxd2 {[%clk 0:01:35]} 22. Qxd2 {[%clk 0:01:28]}  b5 {[%clk 0:01:28]} 23. a3 {[%clk 0:01:11]}  Qe4 {[%clk 0:01:26]} 24. Bg3 {[%clk 0:01:09]}  Rc8 {[%clk 0:01:20]} 25. h3 {[%clk 0:01:06]}  Bb6 {[%clk 0:01:16]} 26. c3 {[%clk 0:01:03]}  h5 {[%clk 0:01:07]} 27. Rd7 {[%clk 0:00:29]}  Rc5 {[%clk 0:00:46]} 28. Qf4 {[%clk 0:00:23]}  Qe1+ {[%clk 0:00:42]} 29. Kh2 {[%clk 0:00:23]}  Rf5 {[%clk 0:00:42]} 30. Qh4 {[%clk 0:00:12]}  Bxf2 {[%clk 0:00:33]} 31. Bxf2 {[%clk 0:00:07]}  Qxf2 {[%clk 0:00:34]} 32. Qxf2 {[%clk 0:00:01]}  Rxf2 {[%clk 0:00:34]} 33. b4 {[%clk 0:00:01]}  Rc2 {[%clk 0:00:30]} 34. Rc7 {[%clk 0:00:02]}  h4 {[%clk 0:00:28]} 35. Kg1 {[%clk 0:00:01]}  g6 {[%clk 0:00:22]} 36. Kf1 {[%clk 0:00:01]}  Kg7 {[%clk 0:00:22]} 37. Rc5 {[%clk 0:00:02]}  a6 {[%clk 0:00:21]} 38. Rc6 {[%clk 0:00:02]}  Kf6 {[%clk 0:00:19]} 39. Kg1 {[%clk 0:00:03]}  Kf5 {[%clk 0:00:17]} 40. Rxa6 {[%clk 0:00:04]}  Rxc3 {[%clk 0:00:17]} 41. Ra5 {[%clk 0:00:05]}  e5 {[%clk 0:00:17]} 42. Rxb5 {[%clk 0:00:02]}  Rxa3 {[%clk 0:00:17]} 43. Rb8 {[%clk 0:00:02]}  Rb3 {[%clk 0:00:15]} 44. b5 {[%clk 0:00:02]}  Kf4 {[%clk 0:00:14]} 45. b6 {[%clk 0:00:02]}  f5 {[%clk 0:00:14]} 46. Kh2 {[%clk 0:00:01]}  Rb1 {[%clk 0:00:13]} 47. Rb7 {[%clk 0:00:01]}  g5 {[%clk 0:00:13]} 48. Rb8 {[%clk 0:00:02]}  e4 {[%clk 0:00:13]} 49. b7 {[%clk 0:00:02]}  e3 {[%clk 0:00:08]} 50. Ra8 {[%clk 0:00:02]}  Rxb7 {[%clk 0:00:09]} 51. Ra4+ {[%clk 0:00:03]}  Ke5 {[%clk 0:00:09]} 52. Ra5+ {[%clk 0:00:03]}  Ke4 {[%clk 0:00:08]} 53. Ra4+ {[%clk 0:00:04]}  Kd3 {[%clk 0:00:08]} 54. Ra3+ {[%clk 0:00:04]}  Kd2 {[%clk 0:00:09]} 55. Ra2+ {[%clk 0:00:05]}  Kc3 {[%clk 0:00:09]} 56. Ra5 {[%clk 0:00:01]}  Re7 {[%clk 0:00:08]} 0-1


[Site "https://www.chess.com"]

[Event "Titled Tuesday Blitz November 14 Early 2023"]
[White "Grischuk, Alexander"]
[Black "Harshavardhan G B"]
[WhiteFideId "4126025"]
[BlackFideId "25059009"]
[WhiteElo "2965"]
[BlackElo "2741"]
[Result "0-1"]
[Round "3"]
[TimeControl "180+1"]
[Date "2023.11.14"]
[WhiteClock "0:00:03"]
[BlackClock "0:00:08"]
[Board "21"]

1. d4 {[%clk 0:03:00]}  Nf6 {[%clk 0:02:54]} 2. c4 {[%clk 0:03:01]}  e6 {[%clk 0:02:54]} 3. Bg5 {[%clk 0:03:01]}  d5 {[%clk 0:02:51]} 4. e3 {[%clk 0:03:00]}  Nbd7 {[%clk 0:02:49]} 5. Nc3 {[%clk 0:03:00]}  c6 {[%clk 0:02:47]} 6. Qc2 {[%clk 0:02:57]}  h6 {[%clk 0:02:46]} 7. Bf4 {[%clk 0:02:52]}  Bb4 {[%clk 0:02:46]} 8. a3 {[%clk 0:02:48]}  Ba5 {[%clk 0:02:45]} 9. Nf3 {[%clk 0:02:43]}  g5 {[%clk 0:02:37]} 10. Bg3 {[%clk 0:02:40]}  Ne4 {[%clk 0:02:34]} 11. Bd3 {[%clk 0:02:36]}  f5 {[%clk 0:02:17]} 12. b4 {[%clk 0:02:29]}  Nxg3 {[%clk 0:02:13]} 13. hxg3 {[%clk 0:02:29]}  Bc7 {[%clk 0:02:13]} 14. cxd5 {[%clk 0:02:12]}  cxd5 {[%clk 0:02:11]} 15. Bxf5 {[%clk 0:02:04]}  exf5 {[%clk 0:02:03]} 16. Nxd5 {[%clk 0:02:04]}  Bd6 {[%clk 0:01:36]} 17. Qxf5 {[%clk 0:02:03]}  Nf8 {[%clk 0:01:32]} 18. Qe4+ {[%clk 0:01:21]}  Be6 {[%clk 0:01:28]} 19. O-O {[%clk 0:01:18]}  Bxg3 {[%clk 0:01:11]} 20. Nc3 {[%clk 0:01:14]}  Rc8 {[%clk 0:00:54]} 21. d5 {[%clk 0:01:14]}  Rxc3 {[%clk 0:00:47]} 22. dxe6 {[%clk 0:01:14]}  Bb8 {[%clk 0:00:35]} 23. Rad1 {[%clk 0:01:06]}  Qc7 {[%clk 0:00:35]} 24. Rd7 {[%clk 0:00:44]}  Nxd7 {[%clk 0:00:29]} 25. exd7+ {[%clk 0:00:45]}  Kd8 {[%clk 0:00:29]} 26. g3 {[%clk 0:00:28]}  Qc6 {[%clk 0:00:20]} 27. Qf5 {[%clk 0:00:25]}  Rc1 {[%clk 0:00:12]} 28. Nd4 {[%clk 0:00:23]}  Rxf1+ {[%clk 0:00:11]} 29. Kxf1 {[%clk 0:00:24]}  Qd6 {[%clk 0:00:10]} 30. Qf7 {[%clk 0:00:22]}  Qe7 {[%clk 0:00:08]} 31. Qf5 {[%clk 0:00:19]}  Bd6 {[%clk 0:00:07]} 32. Qa5+ {[%clk 0:00:11]}  Bc7 {[%clk 0:00:07]} 33. Qxa7 {[%clk 0:00:12]}  Qxd7 {[%clk 0:00:06]} 34. Qxb7 {[%clk 0:00:10]}  Rf8 {[%clk 0:00:06]} 35. Ke1 {[%clk 0:00:08]}  Bd6 {[%clk 0:00:04]} 36. Qa8+ {[%clk 0:00:07]}  Ke7 {[%clk 0:00:04]} 37. Qe4+ {[%clk 0:00:07]}  Kf7 {[%clk 0:00:04]} 38. Qh7+ {[%clk 0:00:07]}  Ke8 {[%clk 0:00:05]} 39. Qxh6 {[%clk 0:00:06]}  Rf7 {[%clk 0:00:03]} 40. Qxg5 {[%clk 0:00:06]}  Bf8 {[%clk 0:00:03]} 41. Qe5+ {[%clk 0:00:04]}  Re7 {[%clk 0:00:03]} 42. Qh5+ {[%clk 0:00:04]}  Kd8 {[%clk 0:00:04]} 43. Kf1 {[%clk 0:00:04]}  Bg7 {[%clk 0:00:03]} 44. Qa5+ {[%clk 0:00:02]}  Ke8 {[%clk 0:00:03]} 45. Qh5+ {[%clk 0:00:02]}  Kf8 {[%clk 0:00:04]} 46. Qf3+ {[%clk 0:00:02]}  Rf7 {[%clk 0:00:04]} 47. Qa8+ {[%clk 0:00:02]}  Qe8 {[%clk 0:00:05]} 48. Ne6+ {[%clk 0:00:01]}  Ke7 {[%clk 0:00:04]} 49. Qxe8+ {[%clk 0:00:01]}  Kxe8 {[%clk 0:00:05]} 50. Nxg7+ {[%clk 0:00:01]}  Rxg7 {[%clk 0:00:06]} 51. Ke2 {[%clk 0:00:01]}  Ra7 {[%clk 0:00:06]} 52. f4 {[%clk 0:00:02]}  Rxa3 {[%clk 0:00:07]} 53. g4 {[%clk 0:00:02]}  Kf7 {[%clk 0:00:07]} 54. e4 {[%clk 0:00:02]}  Rb3 {[%clk 0:00:08]} 55. g5 {[%clk 0:00:03]}  Kg6 {[%clk 0:00:08]} 56. Kf2 {[%clk 0:00:03]}  Kh5 {[%clk 0:00:08]} 57. Ke2 {[%clk 0:00:03]}  Kg6 {[%clk 0:00:07]} 58. Kf2 {[%clk 0:00:03]}  Kh5 {[%clk 0:00:08]} 59. Ke2 {[%clk 0:00:03]}  Rxb4 {[%clk 0:00:08]} 60. Ke3 {[%clk 0:00:04]}  Ra4 {[%clk 0:00:09]} 61. Kf3 {[%clk 0:00:04]}  Kg6 {[%clk 0:00:09]} 62. Kg4 {[%clk 0:00:03]}  Rxe4 {[%clk 0:00:08]} 0-1


[Site "https://www.chess.com"]

[Event "Titled Tuesday Blitz November 14 Early 2023"]
[White "Mitrabha, Guha"]
[Black "Borsuk, Konstantin"]
[WhiteFideId "5057000"]
[BlackFideId "14113406"]
[WhiteElo "2954"]
[BlackElo "2724"]
[Result "1-0"]
[Round "3"]
[TimeControl "180+1"]
[Date "2023.11.14"]
[WhiteClock "0:00:22"]
[BlackClock "0:00:00"]
[Board "23"]

1. Nf3 {[%clk 0:03:00]}  e6 {[%clk 0:02:56]} 2. c4 {[%clk 0:02:58]}  Nf6 {[%clk 0:02:54]} 3. g3 {[%clk 0:02:58]}  b6 {[%clk 0:02:55]} 4. Bg2 {[%clk 0:02:59]}  Bb7 {[%clk 0:02:55]} 5. O-O {[%clk 0:03:00]}  g6 {[%clk 0:02:56]} 6. b3 {[%clk 0:03:00]}  Bg7 {[%clk 0:02:56]} 7. Bb2 {[%clk 0:03:01]}  O-O {[%clk 0:02:57]} 8. d4 {[%clk 0:03:01]}  d6 {[%clk 0:02:56]} 9. Nc3 {[%clk 0:03:01]}  Ne4 {[%clk 0:02:56]} 10. Qc2 {[%clk 0:02:59]}  f5 {[%clk 0:02:53]} 11. Rfd1 {[%clk 0:02:55]}  Nd7 {[%clk 0:02:39]} 12. e3 {[%clk 0:02:43]}  a6 {[%clk 0:02:29]} 13. Ne2 {[%clk 0:02:39]}  g5 {[%clk 0:02:19]} 14. Nd2 {[%clk 0:02:33]}  d5 {[%clk 0:02:16]} 15. Nf3 {[%clk 0:02:31]}  Rc8 {[%clk 0:02:08]} 16. Rac1 {[%clk 0:02:22]}  Qe7 {[%clk 0:02:05]} 17. Qb1 {[%clk 0:02:20]}  h6 {[%clk 0:01:37]} 18. a3 {[%clk 0:02:18]}  Ba8 {[%clk 0:01:34]} 19. a4 {[%clk 0:02:18]}  Rfd8 {[%clk 0:01:28]} 20. Qa1 {[%clk 0:02:12]}  Qf7 {[%clk 0:01:20]} 21. Rc2 {[%clk 0:02:07]}  Qh5 {[%clk 0:01:17]} 22. Rdc1 {[%clk 0:02:04]}  c6 {[%clk 0:01:16]} 23. a5 {[%clk 0:01:59]}  b5 {[%clk 0:01:16]} 24. cxb5 {[%clk 0:01:58]}  axb5 {[%clk 0:01:15]} 25. a6 {[%clk 0:01:58]}  Qf7 {[%clk 0:01:01]} 26. Qa5 {[%clk 0:01:55]}  Bf8 {[%clk 0:00:50]} 27. Nc3 {[%clk 0:01:49]}  Rb8 {[%clk 0:00:47]} 28. Na2 {[%clk 0:01:42]}  b4 {[%clk 0:00:45]} 29. Bf1 {[%clk 0:01:39]}  Qe8 {[%clk 0:00:40]} 30. Ra1 {[%clk 0:01:25]}  c5 {[%clk 0:00:38]} 31. dxc5 {[%clk 0:01:22]}  Ndxc5 {[%clk 0:00:38]} 32. Nc1 {[%clk 0:01:22]}  Bg7 {[%clk 0:00:32]} 33. Bxg7 {[%clk 0:01:17]}  Kxg7 {[%clk 0:00:33]} 34. Rxc5 {[%clk 0:01:18]}  Nxc5 {[%clk 0:00:30]} 35. Qxc5 {[%clk 0:01:18]}  Qf8 {[%clk 0:00:28]} 36. Qd4+ {[%clk 0:01:18]}  Qf6 {[%clk 0:00:28]} 37. Ne5 {[%clk 0:01:17]}  Rbc8 {[%clk 0:00:25]} 38. Ncd3 {[%clk 0:01:16]}  Rb8 {[%clk 0:00:20]} 39. Rc1 {[%clk 0:01:12]}  Rdc8 {[%clk 0:00:20]} 40. Qa7+ {[%clk 0:01:07]}  Kg8 {[%clk 0:00:16]} 41. Rxc8+ {[%clk 0:01:05]}  Rxc8 {[%clk 0:00:16]} 42. Qd7 {[%clk 0:01:05]}  Rf8 {[%clk 0:00:10]} 43. Be2 {[%clk 0:01:02]}  f4 {[%clk 0:00:09]} 44. exf4 {[%clk 0:00:55]}  gxf4 {[%clk 0:00:09]} 45. gxf4 {[%clk 0:00:53]}  d4 {[%clk 0:00:06]} 46. Bh5 {[%clk 0:00:45]}  Be4 {[%clk 0:00:06]} 47. f3 {[%clk 0:00:35]}  Bf5 {[%clk 0:00:03]} 48. Bf7+ {[%clk 0:00:29]}  Kh8 {[%clk 0:00:00]} 49. Bh5 {[%clk 0:00:22]} 1-0


[Site "https://www.chess.com"]